Workbook

Sheet TARIFAS IMPUESTO (hidden)
D2: REGIMEN SIMPLE DE TRIBUTACIÓN
D3: TARIFAS
D7: 1. Tiendas pequeñas, mini-mercados y micro-mercados y peluquerías
D9: Ingresos Brutos anuales | H9: Tarifa simple consolidada
D10: Igual o superior (UVT) | E10: Inferior (UVT) | F10: Igual o superior ($) | G10: Inferior ($)
B11: =IF(AND(#REF!>F12,#REF!<G12),H12,0) ->  | D11: 0 | E11: 6000 | F11: =+D11*$E$16 -> 0 | G11: =+E11*$E$16 -> 205620000 | H11: 0.02
B12: =IF(AND(#REF!>F13,#REF!<G13),H13,0) ->  | D12: 6000 | E12: 15000 | F12: =+D12*$E$16 -> 205620000 | G12: =+E12*$E$16 -> 514050000 | H12: 0.028
B13: =IF(AND(#REF!>F14,#REF!<G14),H14,0) ->  | D13: 15000 | E13: 30000 | F13: 514050000 | G13: 1028100000 | H13: 0.081
B14: =SUM(B11:B13) ->  | D14: 30000 | E14: 80000 | F14: 1028100000 | G14: 2741600000 | H14: 0.116
D16: UVT 2019 | E16: 34270
D19: 2. Actividades comerciales al por mayor y detal; servicios técnicos y mecánicos en los que predomina el factor material sobre el intelectual, los electricistas, los albañiles, los servicios de construcción y los talleres mecánicos de vehículos y electrodomésticos; actividades industriales, incluidas las de agro-industria, mini- industria y micro-industria; actividades de telecomunicaciones y las demás actividades no incluidas en los siguientes numerales:
D26: Ingresos Brutos anuales | H26: Tarifa simple consolidada
D27: Igual o superior (UVT) | E27: Inferior (UVT) | F27: Igual o superior ($) | G27: Inferior ($)
D28: 0 | E28: 6000 | F28: =+D28*$E$33 -> 0 | G28: =+E28*$E$33 -> 205620000 | H28: 0.018
D29: 6000 | E29: 15000 | F29: =+D29*$E$33 -> 205620000 | G29: =+E29*$E$33 -> 514050000 | H29: 0.022
D30: 15000 | E30: 30000 | F30: 514050000 | G30: 1028100000 | H30: 0.039
D31: 30000 | E31: 80000 | F31: 1028100000 | G31: 2741600000 | H31: 0.054
D33: UVT 2019 | E33: =+E16 -> 34270
D36: 3. Servicios profesionales, de consultoría y científicos en los que predomine el factor intelectual sobre el material, incluidos los servicios de profesiones liberales:
D43: Ingresos Brutos anuales | H43: Tarifa simple consolidada
D44: Igual o superior (UVT) | E44: Inferior (UVT) | F44: Igual o superior ($) | G44: Inferior ($)
D45: 0 | E45: 6000 | F45: =+D45*$E$33 -> 0 | G45: =+E45*$E$33 -> 205620000 | H45: 0.049
D46: 6000 | E46: 15000 | F46: =+D46*$E$33 -> 205620000 | G46: =+E46*$E$33 -> 514050000 | H46: 0.053
D47: 15000 | E47: 30000 | F47: 514050000 | G47: 1028100000 | H47: 0.07
D48: 30000 | E48: 80000 | F48: 1028100000 | G48: 2741600000 | H48: 0.085
D50: UVT 2019 | E50: =+E33 -> 34270
D53: 4. Actividades de expendio de comidas y bebidas, y actividades de transporte.
D60: Ingresos Brutos anuales | H60: Tarifa simple consolidada | I60: Tarifa impuesto al consumo | J60: Total tarifa simple consolidada
D61: Igual o superior (UVT) | E61: Inferior (UVT) | F61: Igual o superior ($) | G61: Inferior ($)
D62: 0 | E62: 6000 | F62: =+D62*$E$33 -> 0 | G62: =+E62*$E$33 -> 205620000 | H62: 0.034 | I62: 0.08 | J62: =+H62+I62 -> 0.114 | M62: =+E63/6 -> 2500
D63: 6000 | E63: 15000 | F63: =+D63*$E$33 -> 205620000 | G63: =+E63*$E$33 -> 514050000 | H63: 0.038 | I63: 0.08 | J63: =+H63+I63 -> 0.118 | M63: =+E64/6 -> 5000
D64: 15000 | E64: 30000 | F64: 514050000 | G64: 1028100000 | H64: 0.055 | I64: 0.08 | J64: 0.135 | M64: 13333.33333
D65: 30000 | E65: 80000 | F65: 1028100000 | G65: 2741600000 | H65: 0.07 | I65: 0.08 | J65: 0.15 | M65: 0
D67: UVT 2019 | E67: =+E50 -> 34270

Sheet Consolidado Impuesto (hidden)
B5: Ingresos Brutos anuales | F5: Tarifa actividades 1 | G5: Tarifa actividades 2 | H5: Tarifa actividades 3 | I5: Tarifa actividades 4
B6: Igual o superior (UVT) | C6: Inferior (UVT) | D6: Igual o superior ($) | E6: Inferior ($)
B7: 0 | C7: 6000 | D7: =+B7*$E$12 -> 0 | E7: 205620000 | F7: 0.02 | G7: 0.018 | H7: 0.049 | I7: 0.034
B8: 6000 | C8: 15000 | D8: 205620000 | E8: 514050000 | F8: 0.028 | G8: 0.022 | H8: 0.053 | I8: 0.038
B9: 15000 | C9: 30000 | D9: 514050000 | E9: 1028100000 | F9: 0.081 | G9: 0.039 | H9: 0.07 | I9: 0.055
B10: 30000 | C10: 80000 | D10: 1028100000 | E10: 2741600000 | F10: 0.116 | G10: 0.054 | H10: 0.085 | I10: 0.07
D12: UVT 2019 | E12: 34270

Sheet TARIFAS ANTICIPO (hidden)
D2: REGIMEN SIMPLE DE TRIBUTACIÓN
D3: TARIFAS
D7: 1. Tiendas pequeñas, mini-mercados y micro-mercados y peluquerías
D9: Ingresos Brutos Bimestrales | H9: Tarifa simple consolidada bimestral
D10: Igual o superior (UVT) | E10: Inferior (UVT) | F10: Igual o superior ($) | G10: Inferior ($)
B11: =IF(AND(#REF!>F12,#REF!<G12),H12,0) ->  | D11: 0 | E11: 1000 | F11: =+D11*$E$16 -> 0 | G11: =+E11*$E$16 -> 34270000 | H11: 0.02
B12: =IF(AND(#REF!>F13,#REF!<G13),H13,0) ->  | D12: 1000 | E12: 2500 | F12: =+D12*$E$16 -> 34270000 | G12: 85675000 | H12: 0.028
B13: =IF(AND(#REF!>F14,#REF!<G14),H14,0) ->  | D13: 2500 | E13: 5000 | F13: 85675000 | G13: 171350000 | H13: 0.081
B14: =SUM(B11:B13) ->  | D14: 5000 | E14: 13334 | F14: 171350000 | G14: 456956180 | H14: 0.116
D16: UVT 2019 | E16: 34270
D19: 2. Actividades comerciales al por mayor y detal; servicios técnicos y mecánicos en los que predomina el factor material sobre el intelectual, los electricistas, los albañiles, los servicios de construcción y los talleres mecánicos de vehículos y electrodomésticos; actividades industriales, incluidas las de agro-industria, mini- industria y micro-industria; actividades de telecomunicaciones y las demás actividades no incluidas en los siguientes numerales:
D26: Ingresos Brutos anuales | H26: Tarifa simple consolidada
D27: Igual o superior (UVT) | E27: Inferior (UVT) | F27: Igual o superior ($) | G27: Inferior ($)
D28: 0 | E28: 1000 | F28: =+D28*$E$33 -> 0 | G28: =+E28*$E$33 -> 34270000 | H28: 0.018
D29: 1000 | E29: 2500 | F29: =+D29*$E$33 -> 34270000 | G29: 85675000 | H29: 0.022
D30: 2500 | E30: 5000 | F30: 85675000 | G30: 171350000 | H30: 0.039
D31: 5000 | E31: 13334 | F31: 171350000 | G31: 456956180 | H31: 0.054
D33: UVT 2019 | E33: =+E16 -> 34270
D36: 3. Servicios profesionales, de consultoría y científicos en los que predomine el factor intelectual sobre el material, incluidos los servicios de profesiones liberales:
D43: Ingresos Brutos anuales | H43: Tarifa simple consolidada
D44: Igual o superior (UVT) | E44: Inferior (UVT) | F44: Igual o superior ($) | G44: Inferior ($)
D45: 0 | E45: 1000 | F45: =+D45*$E$33 -> 0 | G45: =+E45*$E$33 -> 34270000 | H45: 0.049
D46: 1000 | E46: 2500 | F46: =+D46*$E$33 -> 34270000 | G46: 85675000 | H46: 0.053
D47: 2500 | E47: 5000 | F47: 85675000 | G47: 171350000 | H47: 0.07
D48: 5000 | E48: 13334 | F48: 171350000 | G48: 456956180 | H48: 0.085
D50: UVT 2019 | E50: =+E33 -> 34270
D53: 4. Actividades de expendio de comidas y bebidas, y actividades de transporte.
D60: Ingresos Brutos anuales | H60: Tarifa simple consolidada | I60: Tarifa impuesto al consumo | J60: Total tarifa simple consolidada
D61: Igual o superior (UVT) | E61: Inferior (UVT) | F61: Igual o superior ($) | G61: Inferior ($)
D62: 0 | E62: 1000 | F62: =+D62*$E$33 -> 0 | G62: =+E62*$E$33 -> 34270000 | H62: 0.034 | I62: 0.08 | J62: =+H62+I62 -> 0.114
D63: 1000 | E63: 2500 | F63: =+D63*$E$33 -> 34270000 | G63: 85675000 | H63: 0.038 | I63: 0.08 | J63: =+H63+I63 -> 0.118
D64: 2500 | E64: 5000 | F64: 85675000 | G64: 171350000 | H64: 0.055 | I64: 0.08 | J64: 0.135
D65: 5000 | E65: 13334 | F65: 171350000 | G65: 456956180 | H65: 0.07 | I65: 0.08 | J65: 0.15
D67: UVT 2019 | E67: =+E50 -> 34270

Sheet Consolidado anticipo (hidden)
B5: Ingresos Brutos bimestrales | F5: Tarifa actividades 1 | G5: Tarifa actividades 2 | H5: Tarifa actividades 3 | I5: Tarifa actividades 4
B6: Igual o superior (UVT) | C6: Inferior (UVT) | D6: Igual o superior ($) | E6: Inferior ($)
B7: 0 | C7: 1000 | D7: =+B7*$E$12 -> 0 | E7: 34270000 | F7: 0.02 | G7: 0.018 | H7: 0.049 | I7: 0.034
B8: 1000 | C8: 2500 | D8: 34270000 | E8: 85675000 | F8: 0.028 | G8: 0.022 | H8: 0.053 | I8: 0.038
B9: 2500 | C9: 5000 | D9: 85675000 | E9: 171350000 | F9: 0.081 | G9: 0.039 | H9: 0.07 | I9: 0.055
B10: 5000 | C10: 13334 | D10: 171350000 | E10: 456956180 | F10: 0.116 | G10: 0.054 | H10: 0.085 | I10: 0.07
D12: UVT 2019 | E12: 34270

Sheet TARIFAS ICA (hidden)
C3: BOGOTÁ
C4: Tarifa por Mil
C5: 4.14
C6: 6.9
C7: 9.66
C8: 11.04
C9: 13.8

Sheet TARIFAS IMPUESTO (2) (hidden)
C2: REGIMEN SIMPLE DE TRIBUTACIÓN
C3: TARIFAS
C7: 1. Actividades comerciales al por mayor y detal, incluidas las tiendas de barrio, mini-mercados y micro-mercados; servicios técnicos y mecánicos en los que predomina el factor material sobre el intelectual, incluidos las peluquerías, los electricistas, los albañiles, los servicios de construcción y los talleres mecánicos de vehículos y electrodomésticos; actividades industriales, incluidas las de agro-industria, mini-industria y micro-industria; y las demás actividades no incluidas en los siguientes numerales:
C14: INGRESOS BRUTOS ANUALES
C15: IGUAL O SUPERIOR | D15: INFERIOR | E15: IGUAL O SUPERIOR | F15: INFERIOR | G15: TARIFA | R15: Servicios profesinales | S15: Restaurantes, bar
B16: =IF(AND($K$16>E17,$K$16<F17),G17,0) -> 0 | C16: UVT | D16: UVT | E16: $ | F16: $ | G16: % | I16: INGRESOS | K16: 500000000 | L16: Margen neto | N16: 0.1
B17: =IF(AND($K$16>E18,$K$16<F18),G18,0) -> 0 | C17: 1400 | D17: 6000 | E17: =+C17*$D$22 -> 46418400 | F17: =+D17*$D$22 -> 198936000 | G17: 0.026 | I17: RENTA LIQUIDA | K17: =+K16*N16 -> 50000000 | L17: Margen real | N17: =+K17/K16 -> 0.1 | R17: 0.056 | S17: 0.111
B18: =IF(AND($K$16>E19,$K$16<F19),G19,0) -> 0.041 | C18: 6000 | D18: 15000 | E18: =+C18*$D$22 -> 198936000 | F18: 497340000 | G18: 0.031 | I18: IMPUESTO RENTA | J18: 0.33 | K18: =+K17*J18 -> 16500000 | R18: 0.066 | S18: 0.116
B19: =IF(AND($K$16>E20,$K$16<F20),G20,0) -> 0 | C19: 15000 | D19: 30000 | E19: 497340000 | F19: 994680000 | G19: 0.041 | I19: ICA + AVISOS Y T | J19: 0.01 | K19: =+K16*J19 -> 5000000 | R19: 0.076 | S19: 0.121
B20: =SUM(B16:B19) -> 0.041 | C20: 30000 | D20: 80000 | E20: 994680000 | F20: 2652480000 | G20: 0.056 | I20: IPOCONSUMO | J20: 0 | K20: =+K16*J20 -> 0 | R20: 0.096 | S20: 0.136
I21: TOTAL IMPUESTO | K21: =+K18+K19+K20 -> 21500000
C22: UVT 2019 | D22: 33156
I25: IMPUESTO SIMPLE | J25: =+B20 -> 0.041 | K25: =+K16*J25 -> 20500000 | L25: =IF(K20>0,"Modificque la tarifa de acuerdo a la tabla","") -> 
I27: Diferencia | K27: =+K25-K21 -> -1000000
C31: 2. Servicios profesionales, de consultoría y científicos en los que predomine el factor intelectual sobre el material, incluidos los servicios de profesiones liberales:
C38: INGRESOS BRUTOS ANUALES
C39: IGUAL O SUPERIOR | D39: INFERIOR | E39: IGUAL O SUPERIOR | F39: INFERIOR | G39: TARIFA
C40: UVT | D40: UVT | E40: $ | F40: $ | G40: %
C41: 1400 | D41: 6000 | E41: =+C41*$D$22 -> 46418400 | F41: =+D41*$D$22 -> 198936000 | G41: 0.056
C42: 6000 | D42: 15000 | E42: =+C42*$D$22 -> 198936000 | F42: 497340000 | G42: 0.066
C43: 15000 | D43: 30000 | E43: 497340000 | F43: 994680000 | G43: 0.076
C44: 30000 | D44: 80000 | E44: 994680000 | F44: 2652480000 | G44: 0.096
C46: UVT 2019 | D46: 34270
C57: 3. Servicio de restaurante, incluidos los servicios de cafetería, bar y “catering”:
C64: INGRESOS BRUTOS ANUALES
C65: IGUAL O SUPERIOR | D65: INFERIOR | E65: IGUAL O SUPERIOR | F65: INFERIOR | G65: TARIFA
C66: UVT | D66: UVT | E66: $ | F66: $ | G66: %
C67: 1400 | D67: 6000 | E67: =+C67*$D$22 -> 46418400 | F67: =+D67*$D$22 -> 198936000 | G67: 0.111
C68: 6000 | D68: 15000 | E68: =+C68*$D$22 -> 198936000 | F68: 497340000 | G68: 0.116
C69: 15000 | D69: 30000 | E69: 497340000 | F69: 994680000 | G69: 0.121
C70: 30000 | D70: 80000 | E70: 994680000 | F70: 2652480000 | G70: 0.136
C72: UVT 2019 | D72: 34270

Sheet Simulador
E2: SIMULADOR IMPUESTO UNIFICADO BAJO EL RÉGIMEN SIMPLE DE TRIBUTACIÓN - SIMPLE
D9: Categoria | E9: T1 | G9: Impuesto renta | H9: 0.33 | I9: =+E12*H9 -> 990000
D10: Ingresos anuales | E10: 30000000 | G10: ICA (x mil) | H10: 9.66 | I10: =+E10*H10/1000 -> 289800
D11: Margen % | E11: 0.1 | G11: Avisos y tableros | H11: 0.15 | I11: =+I10*H11 -> 43470
D12: Renta líquida | E12: =+E10*E11 -> 3000000 | G12: TOTAL IMPUESTO REGIMEN ORDINARIO | I12: =SUM(I9:I11) -> 1323270
D13: Margen utilizado | E13: =IFERROR(+E12/E10,0) -> 0.1 | O13: Diferencia | P13: =+I17-I12 -> -723270
D14: Valor UVT | E14: 34270 | G14: Impuesto Simple | H14: =VLOOKUP(E9,D37:E40,2,0) -> 0.02 | I14: =+E10*H14 -> 600000 | O14: =IF(P13<0,"Es conveniente","No es conveniente") -> Es conveniente
G15: Descuento tributario Ap. Pensión | I15: =IF(E10>E31,0,-F47) -> 0
G16: Descuento tributario TC, TD .. | I16: =IF(E10>E31,0,-F50) -> 0
G17: Total impuesto SIMPLE | I17: =IF((I14+I15+I16)<0,0,(I14+I15+I16)) -> 600000
D19: =VLOOKUP(E9,'Grupo de actividades'!$D$37:$E$40,2,0) -> 1. Tiendas pequeñas, mini-mercados y micro-mercados y peluquerías
B26: Ingresos Brutos anuales | F26: Tarifa actividades 1 | G26: Tarifa actividades 2 | H26: Tarifa actividades 3 | I26: Tarifa actividades 4 | J26: T1 | K26: T2 | L26: T3 | M26: T4
B27: Igual o superior (UVT) | C27: Inferior (UVT) | D27: Igual o superior ($) | E27: Inferior ($)
B28: 0 | C28: 6000 | D28: =+B28*$E$33 -> 0 | E28: 205620000 | F28: 0.02 | G28: 0.018 | H28: 0.049 | I28: 0.034 | J28: =IF(AND($E$10>=D28,$E$10<E28),F28,0) -> 0.02 | K28: =IF(AND($E$10>=D28,$E$10<E28),G28,0) -> 0.018 | L28: =IF(AND($E$10>=D28,$E$10<E28),H28,0) -> 0.049 | M28: =IF(AND($E$10>=D28,$E$10<E28),I28,0) -> 0.034
B29: 6000 | C29: 15000 | D29: 205620000 | E29: 514050000 | F29: 0.028 | G29: 0.022 | H29: 0.053 | I29: 0.038 | J29: =IF(AND($E$10>=D29,$E$10<E29),F29,0) -> 0 | K29: =IF(AND($E$10>=D29,$E$10<E29),G29,0) -> 0 | L29: =IF(AND($E$10>=D29,$E$10<E29),H29,0) -> 0 | M29: =IF(AND($E$10>=D29,$E$10<E29),I29,0) -> 0
B30: 15000 | C30: 30000 | D30: 514050000 | E30: 1028100000 | F30: 0.081 | G30: 0.039 | H30: 0.07 | I30: 0.055 | J30: 0 | K30: 0 | L30: 0 | M30: 0
B31: 30000 | C31: 80000 | D31: 1028100000 | E31: 2741600000 | F31: 0.116 | G31: 0.054 | H31: 0.085 | I31: 0.07 | J31: 0 | K31: 0 | L31: 0 | M31: 0
F32: =+J32 -> 0.02 | G32: =+K32 -> 0.018 | H32: =+L32 -> 0.049 | I32: =+M32 -> 0.034 | J32: =SUM(J28:J31) -> 0.02 | K32: =SUM(K28:K31) -> 0.018 | L32: 0.049 | M32: 0.034
D33: UVT 2019 | E33: 34270
D37: T1 | E37: =+J32 -> 0.02
D38: T2 | E38: =+K32 -> 0.018
D39: T3 | E39: =+L32 -> 0.049
D40: T4 | E40: =+M32 -> 0.034
D45: Descuentos tributarios
D46: Pago de salarios
D47: Aporte pensión por parte del empleador | F47: =+F46*12% -> 0 | H47: Diseño: William Dussán Salazar
H48: www.consultorcontable.com
D49: Ingresos recaudados por medios electrónicos
D50: Descuento tributario 0.5% del ingreso | F50: =+F49*0.5/100 -> 0

Sheet Grupo de actividades
G5: REGIMEN SIMPLE DE TRIBUTACIÓN
G6: Grupo de Actividades
D10: 1. Tiendas pequeñas, mini-mercados y micro-mercados y peluquerías
D12: 2. Actividades comerciales al por mayor y detal; servicios técnicos y mecánicos en los que predomina el factor material sobre el intelectual, los electricistas, los albañiles, los servicios de construcción y los talleres mecánicos de vehículos y electrodomésticos; actividades industriales, incluidas las de agro-industria, mini- industria y micro-industria; actividades de telecomunicaciones y las demás actividades no incluidas en los siguientes numerales:
D19: 3. Servicios profesionales, de consultoría y científicos en los que predomine el factor intelectual sobre el material, incluidos los servicios de profesiones liberales:
D26: 4. Actividades de expendio de comidas y bebidas, y actividades de transporte.
D37: T1 | E37: 1. Tiendas pequeñas, mini-mercados y micro-mercados y peluquerías
D38: T2 | E38: 2. Actividades comerciales al por mayor y detal; servicios técnicos y mecánicos en los que predomina el factor material sobre el intelectual, los electricistas, los albañiles, los servicios de construcción y los talleres mecánicos de vehículos y electrodomésticos; actividades industriales, incluidas las de agro-industria, mini- industria y micro-industria; actividades de telecomunicaciones y las demás actividades no incluidas en los siguientes numerales:
D39: T3 | E39: 3. Servicios profesionales, de consultoría y científicos en los que predomine el factor intelectual
D40: T4 | E40: 4. Actividades de expendio de comidas y bebidas, y actividades de transporte.

Sheet T1
C1: ANALISIS IVA EN TIENDAS, MICRO MERCADOS, MINI MERCADOS
J2: Ingresos Brutos anuales | L2: Ingresos Brutos anuales | N2: Tarifa actividades 1
C3: Compra | E3: 100000 | J3: Igual o superior (UVT) | K3: Inferior (UVT) | L3: Igual o superior ($) | M3: Inferior ($)
C4: Iva | E4: =+E3*0.19 -> 19000 | J4: 0 | K4: 6000 | L4: 0 | M4: 205620000 | N4: 0.02
C5: Total | E5: =+E3+E4 -> 119000 | J5: 6000 | K5: 15000 | L5: 205620000 | M5: 514050000 | N5: 0.028
J6: 15000 | K6: 30000 | L6: 514050000 | M6: 1028100000 | N6: 0.081
C7: Utilidad | D7: 0.1 | E7: =+E3*D7 -> 10000 | J7: 30000 | K7: 80000 | L7: 1028100000 | M7: 2741600000 | N7: 0.116
C9: Precio venta | E9: =+E3+E7 -> 110000
C10: Iva | E10: =+E9*0.19 -> 20900
C11: Total consumidor | E11: =+E9+E10 -> 130900
C14: Iva a pagar a DIAN | E14: =+E10-E4 -> 1900
C17: EN SIMPLE
C19: Ingresos producto de venta | E19: =+E11 -> 130900
C21: Utilidad | E21: =+E11-E5 -> 11900
C23: Mayor dinero | E23: =+E21-E7 -> 1900
C25: Mayor margen | E25: =+E23/E19 -> 0.01451489687
